bitfinex/quotes_SOLUSD_20260309
["timestamp","ask_amount","ask_price","bid_price","bid_amount"]
[1773035906854,3.77001215,84.226,84.21,3.74007198]
[1773035907060,3.77001215,84.224,84.21,3.74007198]
[1773035908166,3.77001215,84.224,84.21,1.1015085]
[1773035908379,0.14216157,84.227,84.16,63.7442133]
[1773035908380,3.77001215,84.222,84.2,2.82130995]
[1773035908540,3.77001215,84.216,84.19,4.33389532]
[1773035909161,3.77001215,84.221,84.2,4.33389532]
[1773035909464,0.28432314,84.219,84.2,4.33389532]
[1773035909942,0.28432314,84.227,84.21,4.33389532]
[1773035910355,4.05433529,84.227,84.21,4.33389532]
[1773035910636,3.39766484,84.233,84.22,4.33389532]
[1773035911837,3.39766484,84.233,84.22,7.94529199]
[1773035912044,11.91984414,84.27,84.221,3.61139667]
[1773035912045,3.77001215,84.252,84.221,3.61139667]
[1773035912245,3.77001215,84.252,84.23,4.33389532]
[1773035913561,3.77001215,84.252,84.23,16.20608739]
[1773035916645,3.77001215,84.252,84.23,4.33389532]
[1773035917455,3.77001215,84.252,84.24,4.33389532]
[1773035917662,12.15251073,84.259,84.24,7.76434216]
[1773035917860,29.66519986,84.274,84.2,4.33389532]
[1773035917861,3.40903358,84.273,84.251,3.43044684]
[1773035918173,4.53389532,84.29,84.251,3.43044684]
[1773035918174,3.40903358,84.28,84.251,3.43044684]
[1773035918772,11.86588732,84.276,84.251,3.43044684]
[1773035919271,11.86631983,84.273,84.251,3.43044684]
[1773035919452,11.86540947,84.279,84.26,4.33389532]
[1773035919772,11.86596197,84.275,84.26,4.33389532]
[1773035920071,11.86648929,84.271,84.253,3.43044684]
[1773035921861,11.86718249,84.266,84.25,4.33389532]
[1773035922071,7.52380952,84.284,84.251,3.43044684]
[1773035922282,7.52380952,84.284,84.27,4.33389532]
[1773035922780,19.38859151,84.284,84.261,3.43044684]
[1773035923072,7.52380952,84.284,84.27,4.33389532]
[1773035924364,19.3884637,84.284,84.27,4.33389532]
[1773035924673,19.3884637,84.284,84.247,29.67439296]
[1773035924674,3.40903358,84.281,84.25,4.33389532]
[1773035924979,49.05008393,84.284,84.25,4.33389532]
[1773035924980,3.69335672,84.277,84.251,3.43044684]
[1773035925861,11.86577436,84.276,84.251,3.43044684]
[1773035926176,3.40903358,84.275,84.251,3.43044684]
[1773035926470,3.40903358,84.275,84.251,15.29965817]
[1773035926670,3.40903358,84.275,84.252,3.43044684]
[1773035927272,3.40903358,84.275,84.251,11.86921133]
[1773035927273,3.40903358,84.28,84.26,4.33389532]
[1773035927475,7.52380952,84.284,84.27,4.33389532]
[1773035927787,7.52380952,84.284,84.261,3.43044684]
[1773035927980,7.52380952,84.284,84.263,3.43044684]
[1773035931385,7.52380952,84.284,84.264,11.86746416]
[1773035931584,7.52380952,84.284,84.271,3.43044684]
[1773035931962,7.52380952,84.284,84.27,4.33389532]
[1773035933165,7.52380952,84.284,84.271,3.43044684]
[1773035935174,7.52380952,84.284,84.272,3.43044684]
[1773035936478,7.52380952,84.284,84.26,4.33389532]
[1773035936479,3.40903358,84.283,84.26,4.33389532]
[1773035936684,3.40903358,84.283,84.26,7.76434216]
[1773035936885,3.40903358,84.283,84.25,29.67338898]
[1773035936886,3.40903358,84.282,84.251,3.43044684]
[1773035937390,3.40903358,84.28,84.251,15.29965228]
[1773035937783,3.40903358,84.28,84.251,11.86920544]
[1773035937984,3.40903358,84.28,84.252,3.43044684]
[1773035940183,3.40903358,84.28,84.217,0.28432314]
[1773035940184,3.40903358,84.278,84.244,3.43044684]
[1773035940501,3.40903358,84.276,84.241,3.43044684]
[1773035940906,3.40903358,84.276,84.242,3.43044684]
[1773035941084,3.40903358,84.283,84.251,3.43044684]
[1773035941284,3.40903358,84.282,84.251,3.43044684]
[1773035942279,3.40903358,84.279,84.24,7.76434216]
[1773035942484,3.69335672,84.269,84.236,3.43044684]
[1773035942680,3.69335672,84.269,84.241,3.43044684]
[1773035944706,3.71577934,84.267,84.241,3.43044684]
[1773035945686,3.71577934,84.267,84.235,3.73967977]
[1773035946295,3.71577934,84.267,84.241,3.73967977]
[1773035946988,3.4314562,84.265,84.241,3.73967977]
[1773035947603,3.4314562,84.265,84.23,4.33389532]
[1773035947793,3.4314562,84.257,84.22,4.33389532]
[1773035947991,3.4314562,84.257,84.221,3.73967977]
[1773035948498,3.4314562,84.257,84.222,3.73967977]
[1773035949086,3.6569423,84.255,84.224,3.61581653]
[1773035951298,41.54006836,84.256,84.224,3.61581653]
[1773035951299,3.6569423,84.253,84.224,3.61581653]
[1773035951690,3.6569423,84.253,84.226,3.61581653]
[1773035952296,4.33389532,84.25,84.221,3.61581653]
[1773035952498,3.6569423,84.249,84.221,3.61581653]
[1773035953791,3.6569423,84.247,84.221,3.61581653]
[1773035955392,3.6569423,84.247,84.223,3.61581653]
[1773035956094,11.86999976,84.246,84.223,3.61581653]
[1773035956410,2.1745055,84.255,84.231,3.61581653]
[1773035956820,3.6569423,84.253,84.231,3.61581653]
[1773035957920,3.6569423,84.253,84.225,3.61581653]
[1773035959214,3.6569423,84.253,84.227,3.61581653]
[1773035960007,11.86887269,84.254,84.227,3.61581653]
[1773035960208,15.52581499,84.254,84.229,3.61581653]
[1773035960531,3.6569423,84.254,84.229,3.61581653]
[1773035962310,0.67553222,84.255,84.241,3.61581653]
[1773035962621,11.93010474,84.32,84.241,3.61581653]
[1773035962622,1.7396044,84.276,84.241,3.61581653]
[1773035962914,1.7396044,84.276,84.261,3.61581653]
[1773035963116,3.6569423,84.274,84.251,3.61581653]
[1773035964424,3.6569423,84.272,84.25,4.33090503]
[1773035964600,3.6569423,84.272,84.245,15.48586591]
[1773035964797,3.6569423,84.272,84.246,3.61581653]
[1773035965401,3.6569423,84.272,84.25,4.33090503]
[1773035965598,3.6569423,84.272,84.251,3.61581653]
[1773035966101,1.7396044,84.276,84.251,3.61581653]
[1773035966723,1.7396044,84.276,84.245,11.87004938]
[1773035966724,1.7396044,84.276,84.261,3.61581653]
[1773035967415,0.83465915,84.276,84.262,3.61581653]
[1773035967599,0.2,84.29,84.263,3.61581653]
[1773035967799,3.6569423,84.288,84.263,3.61581653]
[1773035968017,3.6569423,84.288,84.26,4.33090503]
[1773035968216,3.6569423,84.288,84.26,7.94672156]
[1773035968517,3.6569423,84.288,84.261,3.61581653]
[1773035968722,0.2,84.29,84.271,3.61581653]
[1773035969425,12.06388797,84.29,84.271,3.61581653]
[1773035969622,0.2,84.29,84.271,3.61581653]
[1773035969812,0.2,84.29,84.281,3.61581653]
[1773035971428,0.2,84.29,84.28,4.33090503]
[1773035973618,3.72079732,84.29,84.27,4.33090503]
[1773035973932,4.53090503,84.31,84.281,1.97648645]
[1773035973933,3.52079732,84.309,84.281,1.97648645]
[1773035975244,3.52079732,84.309,84.27,4.33090503]
[1773035975245,3.52079732,84.308,84.283,1.97614299]
[1773035976246,3.52079732,84.308,84.257,0.28432314]
[1773035976247,3.52079732,84.306,84.269,1.97580348]
[1773035976423,3.52079732,84.299,84.262,1.97546787]
[1773035977218,3.52079732,84.297,84.264,1.97546787]
[1773035978342,15.38375641,84.296,84.266,1.97480817]
[1773035978524,11.86295909,84.296,84.266,1.97480817]
[1773035978840,3.52079732,84.295,84.266,1.97480817]
[1773035979030,11.86295909,84.296,84.266,1.97480817]
[1773035980347,3.52079732,84.295,84.266,1.97480817]
[1773035980647,11.86324056,84.294,84.268,1.97240684]
[1773035982942,3.52079732,84.297,84.268,1.97240684]
[1773035985138,11.86295909,84.296,84.27,1.96776748]
[1773035985529,15.38375641,84.296,84.27,1.96776748]
[1773035985842,3.52079732,84.295,84.27,1.96776748]
[1773035986156,3.52079732,84.295,84.263,1.96664075]
[1773035986331,3.52079732,84.306,84.271,1.96552696]
[1773035986927,3.52079732,84.299,84.262,1.96552696]
[1773035987122,3.52079732,84.297,84.263,11.86760499]
[1773035987339,3.52079732,84.297,84.264,1.96442597]
[1773035988946,3.52079732,84.295,84.266,1.96333762]
[1773035989323,11.8620917,84.303,84.271,1.96226177]
[1773035989640,15.38224169,84.307,84.271,1.96226177]
[1773035990036,11.86144437,84.307,84.271,1.96226177]
[1773035990247,3.52079732,84.306,84.271,1.96226177]
[1773035992141,15.38248998,84.305,84.273,1.960147]
[1773035992443,3.52079732,84.304,84.281,1.9591078]
[1773035994449,3.52079732,84.304,84.275,1.95706507]
[1773035995455,3.52079732,84.302,84.277,1.95606127]
[1773035997866,3.52079732,84.302,84.279,1.95408813]
[1773035998229,0.759,84.308,84.281,3.64430783]
[1773035999153,0.2,84.32,84.293,3.64430783]
[1773036000254,0.2,84.33,84.302,3.64430783]
[1773036000555,3.72079732,84.33,84.302,3.64430783]
[1773036000732,0.2,84.33,84.302,3.64430783]
[1773036001353,4.54431922,84.336,84.313,3.64430783]
[1773036001735,4.54431922,84.336,84.321,3.64430783]
[1773036002255,4.54431922,84.336,84.323,3.64430783]
[1773036002457,4.54431922,84.336,84.31,4.33090503]
[1773036002458,3.52079732,84.334,84.272,59.33122053]
[1773036002658,3.52079732,84.329,84.28,4.33090503]
[1773036003528,3.45085053,84.319,84.27,45.86407223]
[1773036003951,3.45085053,84.319,84.28,4.33090503]
[1773036004360,3.45085053,84.318,84.281,11.86507041]
[1773036004559,3.45085053,84.318,84.282,1.06314785]
[1773036005340,4.33090503,84.29,84.253,11.86901356]
[1773036005640,3.45085053,84.279,84.253,11.86901356]
[1773036006041,10.93903789,84.304,84.26,4.33090503]
[1773036006336,10.93903789,84.304,84.253,41.54154747]
[1773036006337,3.45085053,84.303,84.272,1.0594682]
[1773036006537,3.45085053,84.303,84.276,11.86573899]
[1773036006946,3.45085053,84.303,84.277,1.0594682]
[1773036007150,7.48818736,84.304,84.277,1.0594682]
[1773036008141,3.45085053,84.303,84.278,11.86549277]
[1773036008340,3.45085053,84.303,84.279,1.05308857]
[1773036008549,7.48818736,84.304,84.279,1.05308857]
[1773036008754,7.48818736,84.304,84.281,1.05308857]
[1773036009542,0.14216157,84.325,84.281,1.04856964]
[1773036009746,3.45085053,84.336,84.301,1.04856964]
[1773036010044,7.50371683,84.335,84.311,1.04856964]
[1773036010243,7.50371683,84.335,84.313,1.04410261]
[1773036010757,3.41940725,84.334,84.297,1.03968689]
[1773036011070,3.41940725,84.334,84.19,9.84078125]
[1773036011071,3.41940725,84.309,84.271,11.86647838]
[1773036011681,3.41940725,84.309,84.272,1.03532189]
[1773036012765,3.41940725,84.309,84.273,11.86619676]
[1773036013154,3.41940725,84.307,84.273,11.86619676]
[1773036013969,3.41940725,84.289,84.25,4.33090503]
[1773036014151,3.41940725,84.289,84.249,1.02674173]
[1773036014555,3.41940725,84.279,84.248,11.86971797]
[1773036015067,3.41940725,84.279,84.242,1.02252542]
[1773036015068,3.41940725,84.279,84.244,1.02252542]
[1773036015850,3.41940725,84.279,84.25,11.59339057]
[1773036016368,3.41940725,84.279,84.251,1.01423752]
[1773036017460,3.41940725,84.279,84.252,11.86915444]
[1773036017763,3.41940725,84.279,84.26,11.59339057]
[1773036018173,3.41940725,84.279,84.253,1.01016483]
[1773036018369,3.41940725,84.279,84.252,11.86915444]
[1773036018564,3.41940725,84.278,84.252,11.86915444]
[1773036018763,3.41940725,84.278,84.24,11.59339057]
[1773036019579,3.41940725,84.278,84.25,11.59339057]
[1773036020074,3.41940725,84.278,84.242,1.00215925]
[1773036020277,3.41940725,84.278,84.241,41.54738798]
[1773036020780,3.41940725,84.276,84.241,11.87062726]
[1773036020986,3.41940725,84.269,84.231,11.87211359]
[1773036021184,3.41940725,84.269,84.232,0.9982253]
[1773036021483,3.41940725,84.267,84.231,11.87211359]
[1773036021886,3.41940725,84.267,84.232,0.99433652]
[1773036024375,3.41940725,84.265,84.231,11.87211359]
[1773036024577,3.41940725,84.265,84.23,11.59858721]
[1773036024578,0.28432314,84.272,84.241,0.98293616]
[1773036024779,3.41940725,84.271,84.24,11.59858721]
[1773036024964,3.41940725,84.271,84.234,0.98293616]
[1773036025165,3.41940725,84.271,84.23,11.59858721]
[1773036025679,3.41940725,84.271,84.24,11.59858721]
[1773036025987,3.41940725,84.267,84.22,11.59858721]
[1773036026176,3.41940725,84.257,84.211,41.5622662]
[1773036026381,3.41940725,84.257,84.211,11.8749332]
[1773036026574,3.41940725,84.255,84.211,11.8749332]
[1773036026777,3.41940725,84.255,84.211,10.83474832]
[1773036026967,3.41940725,84.267,84.23,11.59858721]
[1773036027382,3.41940725,84.259,84.22,11.59858721]
[1773036027585,3.41940725,84.259,84.22,12.57051134]
[1773036027801,3.41940725,84.259,84.221,0.97192413]
[1773036027973,3.41940725,84.296,84.251,0.97192413]
[1773036028172,3.41940725,84.296,84.257,0.96833745]
[1773036028476,3.41940725,84.296,84.27,11.59858721]
[1773036028682,3.41940725,84.296,84.271,11.86647838]
[1773036029174,3.41940725,84.296,84.28,11.59858721]
[1773036029579,3.41940725,84.296,84.271,11.86647838]
[1773036030481,11.86206516,84.303,84.28,11.59858721]
[1773036030685,3.41940725,84.302,84.28,11.59858721]
[1773036031185,3.41940725,84.302,84.27,11.59858721]
[1773036031777,3.41940725,84.302,84.265,11.86732332]
[1773036031989,3.41940725,84.297,84.26,11.8680111]
[1773036032499,3.41940725,84.295,84.243,30.63040499]
[1773036032676,3.41940725,84.295,84.26,11.59858721]
[1773036032992,3.41940725,84.295,84.25,0.95101263]
[1773036033298,3.41940725,84.295,84.26,11.59858721]
[1773036033703,3.41940725,84.295,84.243,29.67600699]
[1773036033704,3.5595458,84.316,84.271,0.94766614]
[1773036033998,5.88131618,84.329,84.3,11.59858721]
[1773036033999,3.5595458,84.328,84.3,11.59858721]
[1773036034175,3.5595458,84.328,84.31,11.59858721]
[1773036034379,3.5595458,84.328,84.3,11.59858721]
[1773036034575,5.88131618,84.329,84.3,11.59858721]
[1773036034576,3.5595458,84.326,84.3,11.59858721]
[1773036034898,3.5595458,84.324,84.29,11.59858721]
[1773036035281,3.5595458,84.319,84.27,11.59858721]
[1773036035475,11.59858721,84.32,84.27,11.59858721]
[1773036035476,3.5595458,84.317,84.27,11.59858721]
[1773036035676,3.5595458,84.317,84.28,11.59858721]
[1773036036610,3.5595458,84.317,84.3,11.59858721]
[1773036036893,3.5595458,84.327,84.3,11.59858721]
[1773036037682,3.5595458,84.327,84.31,11.59858721]
[1773036039296,3.5595458,84.327,84.306,11.8614265]
[1773036040398,3.5595458,84.327,84.267,0.28432314]
[1773036040399,3.5595458,84.325,84.29,11.59858721]
[1773036041087,3.5595458,84.325,84.3,11.59858721]
[1773036041785,3.5595458,84.325,84.29,11.59858721]
[1773036042179,3.5595458,84.325,84.28,23.46379841]
[1773036042378,3.5595458,84.323,84.281,0.91922551]
[1773036042586,3.5595458,84.323,84.3,11.59858721]
[1773036043502,3.5595458,84.323,84.28,41.5282392]
[1773036043503,3.5595458,84.321,84.29,11.59858721]
[1773036043907,3.5595458,84.317,84.28,23.46379841]
[1773036044383,3.5595458,84.315,84.28,23.46379841]
[1773036045427,11.86014516,84.316,84.26,11.59858721]
[1773036045428,3.5595458,84.297,84.26,11.59858721]
[1773036045582,3.5595458,84.297,84.26,12.50897091]
[1773036046280,3.5595458,84.295,84.261,11.86788668]
[1773036046803,11.86295909,84.296,84.249,29.67394271]
[1773036046804,3.5595458,84.287,84.256,11.86847512]
[1773036049901,3.5595458,84.285,84.251,11.86929531]
[1773036050308,3.5595458,84.277,84.241,11.87070428]
[1773036050607,3.5595458,84.269,84.235,11.87148468]
[1773036050801,3.5595458,84.257,84.22,11.59858721]
[1773036051308,3.5595458,84.239,84.209,11.87521523]
[1773036051699,3.5595458,84.237,84.181,0.89359338]
[1773036051902,3.5595458,84.237,84.18,0.1]
[1773036051903,3.5595458,84.219,84.18,11.69858721]
[1773036052091,3.5595458,84.217,84.186,11.87844904]
[1773036052510,3.5595458,84.217,84.19,23.67636655]
[1773036052711,3.5595458,84.217,84.19,12.07777934]
[1773036053706,3.5595458,84.217,84.19,0.2]
[1773036054605,0.28432314,84.225,84.19,0.2]
[1773036054606,3.5595458,84.215,84.19,0.2]
[1773036056413,3.5595458,84.209,84.18,0.1]
[1773036056614,3.5595458,84.207,84.18,0.1]
[1773036059091,3.5595458,84.205,84.171,11.88057644]
[1773036059294,3.5595458,84.205,84.171,41.58201755]
[1773036059516,3.5595458,84.216,84.19,11.59858721]
[1773036059920,3.5595458,84.216,84.18,11.59858721]
[1773036061114,3.5595458,84.216,84.17,0.1]
[1773036061115,11.87170054,84.234,84.2,11.59858721]
[1773036061510,11.59858721,84.26,84.22,11.59858721]
[1773036061817,0.28432314,84.267,84.23,11.59858721]
[1773036062021,11.86690084,84.268,84.24,11.59858721]
[1773036062416,11.86690084,84.268,84.23,11.59858721]
[1773036062611,0.28432314,84.267,84.23,11.59858721]
[1773036062819,11.86690084,84.268,84.23,11.59858721]
[1773036063121,3.3760431,84.265,84.231,11.87211359]
[1773036063320,3.3760431,84.265,84.25,11.59858721]
[1773036063902,3.3760431,84.274,84.25,11.59858721]
[1773036064800,3.3760431,84.274,84.231,11.87211359]
[1773036064801,3.3760431,84.273,84.231,11.87211359]
[1773036065009,41.50460107,84.328,84.261,3.57571375]
[1773036065210,11.59858721,84.3,84.26,11.59858721]
[1773036065416,0.28432314,84.299,84.26,11.59858721]
[1773036066026,0.28432314,84.299,84.27,11.59858721]
[1773036066322,0.28432314,84.299,84.261,11.86788668]
[1773036066323,11.59858721,84.3,84.261,11.86788668]
[1773036066536,0.28432314,84.299,84.261,15.44360043]
[1773036066738,11.86112989,84.309,84.28,11.59858721]
[1773036067230,11.86112989,84.309,84.271,11.86647838]
[1773036067231,3.3760431,84.304,84.271,11.86647838]
[1773036067725,3.3760431,84.299,84.27,11.59858721]
[1773036067960,3.3760431,84.299,84.28,11.59858721]
[1773036068119,3.3760431,84.304,84.28,11.59858721]
[1773036068725,3.3760431,84.315,84.281,3.57571375]
[1773036069327,3.3760431,84.315,84.282,11.86492964]
[1773036069627,3.3760431,84.315,84.282,15.17085094]
[1773036069826,3.3760431,84.315,84.29,11.59858721]
[1773036070131,3.52776291,84.323,84.29,11.59858721]
[1773036070312,3.52776291,84.323,84.283,3.3059213]
[1773036070706,3.52776291,84.323,84.291,3.3059213]
[1773036070926,17.73972975,84.329,84.291,3.3059213]
[1773036071534,17.73972975,84.329,84.303,3.3059213]
[1773036072708,21.26749266,84.329,84.303,3.3059213]
[1773036074525,11.85859807,84.327,84.29,11.59858721]
[1773036074715,11.85859807,84.327,84.138,19.45461694]
[1773036074716,3.52776291,84.299,84.249,11.86957708]
[1773036075029,3.52776291,84.299,84.26,11.59858721]
[1773036075329,3.52776291,84.297,84.26,11.59858721]
[1773036076632,15.390722,84.296,84.262,15.17366714]
[1773036076805,15.390722,84.296,84.263,3.3059213]
[1773036077011,15.390722,84.296,84.262,11.86774584]
[1773036077012,11.86112989,84.309,84.271,3.3059213]
[1773036077507,3.52776291,84.308,84.271,3.3059213]
[1773036078140,11.86141127,84.307,84.272,11.86633757]
[1773036078441,15.38917418,84.307,84.273,3.3059213]
[1773036079012,11.59858721,84.3,84.274,11.86605596]
[1773036079212,3.52776291,84.304,84.274,11.86605596]
[1773036079416,11.86169266,84.305,84.275,3.3059213]
[1773036079616,11.86105073,84.31,84.281,3.3059213]
[1773036079813,3.52776291,84.333,84.3,11.59858721]
[1773036080027,11.85818315,84.33,84.301,3.3059213]
[1773036080221,11.85845745,84.328,84.301,3.3059213]
[1773036080727,3.52776291,84.333,84.301,3.3059213]
[1773036081131,11.85819218,84.33,84.302,11.86211477]
[1773036081429,11.85819218,84.33,84.302,15.16803607]
[1773036082036,11.59858721,84.32,84.28,11.59858721]
[1773036082222,3.52776291,84.299,84.265,3.3059213]
[1773036082737,3.52776291,84.299,84.271,3.3059213]
[1773036083133,11.86267764,84.298,84.271,3.3059213]
[1773036084318,3.52776291,84.297,84.271,3.3059213]
[1773036086222,3.52776291,84.297,84.272,11.86633757]
[1773036087043,11.8620885,84.303,84.272,3.3059213]
[1773036088443,3.52776291,84.302,84.272,3.3059213]
[1773036088937,11.86225548,84.301,84.273,3.3059213]
[1773036089752,15.39001839,84.301,84.273,3.3059213]
[1773036091647,3.52776291,84.299,84.253,3.3059213]
[1773036092548,3.52776291,84.289,84.253,3.3059213]
[1773036093739,3.47890465,84.287,84.254,11.86887269]
[1773036094546,3.47890465,84.305,84.261,3.45535475]
[1773036094728,3.47890465,84.305,84.271,3.45535475]
[1773036095825,3.47890465,84.304,84.273,3.45535475]
[1773036096028,11.86070784,84.312,84.281,3.45535475]
[1773036096227,3.47890465,84.309,84.272,11.86633757]
[1773036097356,3.47890465,84.307,84.272,11.86633757]
[1773036097547,3.47890465,84.299,84.26,23.45668208]
[1773036098052,3.47890465,84.299,84.261,3.45535475]
[1773036099225,3.47890465,84.299,84.26,23.45668208]
[1773036099226,11.86267764,84.298,84.26,23.45668208]
[1773036099428,3.47890465,84.289,84.251,11.86929531]
[1773036099655,3.47890465,84.279,84.247,11.8698272]
[1773036100647,0.28432314,84.288,84.241,24.97868563]
[1773036100648,11.58865455,84.27,84.241,24.97868563]
[1773036100849,3.47890465,84.269,84.241,24.97868563]
[1773036101433,3.47890465,84.267,84.241,13.10804525]
[1773036104361,3.47890465,84.265,84.241,13.10804525]
[1773036105340,3.47890465,84.265,84.241,24.97863915]
[1773036106355,3.47890465,84.263,84.241,13.10804525]
[1773036106755,3.47890465,84.298,84.251,3.45535475]
[1773036107062,3.47890465,84.298,84.242,11.87056337]
[1773036107063,3.47890465,84.296,84.261,3.45535475]
[1773036107565,3.47890465,84.296,84.252,3.45535475]
[1773036107743,3.47890465,84.296,84.26,11.58865455]
[1773036108145,3.47890465,84.296,84.261,3.45535475]
[1773036109551,3.47890465,84.294,84.258,11.86823518]
[1773036110049,3.47890465,84.294,84.26,11.58865455]
[1773036111456,3.47890465,84.292,84.26,11.58865455]
[1773036111634,3.47890465,84.289,84.255,11.86873182]
[1773036112062,0.28432314,84.288,84.25,11.58865455]
[1773036112362,3.47890465,84.287,84.251,11.86926685]
[1773036114454,3.47890465,84.285,84.252,3.45535475]
[1773036115355,3.47890465,84.285,84.251,11.86926685]
[1773036115356,3.47890465,84.291,84.261,3.45535475]
[1773036116361,104.64216157,84.305,84.261,3.45535475]
[1773036116362,3.47890465,84.298,84.261,3.45535475]
[1773036116552,3.47890465,84.298,84.273,3.45535475]
[1773036116856,3.47890465,84.297,84.273,3.45535475]
[1773036118970,3.47890465,84.311,84.281,3.45535475]
[1773036119167,3.47890465,84.318,84.291,3.45535475]
[1773036119372,59.2747275,84.353,84.301,3.45535475]
[1773036119373,3.47890465,84.342,84.301,3.45535475]
[1773036119663,3.47890465,84.342,84.274,41.53119586]
[1773036119664,3.47890465,84.329,84.29,11.58865455]
[1773036119861,3.47890465,84.327,84.29,11.58865455]
[1773036120250,3.47890465,84.327,84.29,15.0440093]
[1773036120948,3.47890465,84.319,84.28,15.0440093]
[1773036121270,3.47890465,84.317,84.28,15.0440093]
[1773036121460,0.14216157,84.318,84.265,11.86719696]
[1773036121461,3.47890465,84.299,84.265,11.86719696]
[1773036121653,3.47890465,84.299,84.27,15.0440093]
[1773036121852,3.47890465,84.299,84.271,3.45535475]
[1773036122156,3.47890465,84.307,84.271,3.45535475]
[1773036122748,3.47890465,84.305,84.272,11.86633757]
[1773036122948,3.47890465,84.305,84.273,3.25376064]
[1773036123349,3.47890465,84.305,84.28,11.58865455]
[1773036123864,3.47890465,84.305,84.273,3.25376064]
[1773036124754,3.47890465,84.305,84.275,3.25376064]
[1773036125060,3.47890465,84.305,84.281,3.25376064]
[1773036125976,3.22813997,84.304,84.274,15.1198166]
[1773036126180,3.22813997,84.304,84.281,3.25376064]
[1773036126472,11.86110621,84.31,84.281,3.25376064]
[1773036126770,3.22813997,84.309,84.281,3.25376064]
[1773036126974,3.22813997,84.317,84.291,3.25376064]
[1773036127148,7.53557301,84.325,84.301,3.25376064]
[1773036127149,10.76371298,84.325,84.301,3.25376064]
[1773036127356,7.53557301,84.325,84.31,11.58865455]
[1773036127659,7.53557301,84.325,84.301,3.25376064]
[1773036128262,3.22813997,84.323,84.284,3.25376064]
[1773036128465,3.22813997,84.319,84.284,3.25376064]
[1773036128663,3.22813997,84.319,84.29,11.58865455]
[1773036128971,3.22813997,84.319,84.284,3.25376064]
[1773036129274,3.22813997,84.317,84.29,11.58865455]
[1773036129581,3.22813997,84.317,84.286,3.0555725]
[1773036129955,3.22813997,84.317,84.285,11.86450732]
[1773036131658,3.33056641,84.315,84.282,29.66224027]
[1773036132173,3.33056641,84.315,84.282,32.71781277]
[1773036132472,3.33056641,84.315,84.283,3.0555725]
[1773036133160,3.33056641,84.299,84.251,3.0555725]
[1773036133361,0.28432314,84.308,84.251,3.0555725]
[1773036133362,3.33056641,84.289,84.251,3.0555725]
[1773036133560,3.33056641,84.287,84.253,3.0555725]
[1773036135379,3.33056641,84.279,84.24,11.58865455]
[1773036135578,3.33056641,84.277,84.242,11.87056337]
[1773036136074,3.33056641,84.269,84.236,11.87127023]
[1773036137477,3.33056641,84.269,84.233,3.0555725]
[1773036137681,3.33056641,84.269,84.243,3.0555725]
[1773036138759,3.33056641,84.259,84.22,11.58865455]
[1773036139780,3.33056641,84.257,84.221,11.87352323]
[1773036140081,3.33056641,84.257,84.23,11.58865455]
[1773036141361,3.33056641,84.257,84.23,14.64422705]
[1773036142066,3.33056641,84.255,84.224,14.92855954]
[1773036142271,3.33056641,84.255,84.231,3.0555725]
[1773036142575,3.33056641,84.255,84.224,41.55573779]
[1773036142875,3.33056641,84.255,84.225,3.0555725]
[1773036143068,3.33056641,84.255,84.231,3.0555725]
[1773036143458,11.58865455,84.26,84.231,3.0555725]
[1773036143656,3.33056641,84.259,84.231,3.0555725]
[1773036144064,15.19873479,84.259,84.232,11.87197264]
[1773036144265,3.33056641,84.258,84.232,11.87197264]
[1773036144672,3.33056641,84.258,84.228,11.87253278]
[1773036145273,3.33056641,84.258,84.229,3.0555725]
[1773036146079,3.33056641,84.258,84.231,3.0555725]
[1773036146386,3.33056641,84.258,84.233,3.0555725]
[1773036148273,3.33056641,84.258,84.234,11.87169076]
[1773036148476,3.33056641,84.258,84.192,3.69383402]
[1773036148477,3.33056641,84.249,84.21,11.59986016]
[1773036149064,3.33056641,84.249,84.194,0.14216157]
[1773036149289,3.33056641,84.239,84.2,11.59986016]
[1773036150191,3.33056641,84.227,84.193,11.87747199]
[1773036150502,3.33056641,84.219,84.193,11.87747199]
[1773036151272,3.33056641,84.219,84.19,11.59986016]
[1773036151581,3.33056641,84.229,84.191,1.0735852]
[1773036151965,3.33056641,84.236,84.201,1.0735852]
[1773036152166,47.42769759,84.339,84.22,11.59986016]
[1773036152167,3.33056641,84.249,84.22,11.59986016]
[1773036152483,11.86662582,84.27,84.241,3.0555725]
[1773036152783,11.86718249,84.266,84.241,3.0555725]
[1773036153579,11.8664038,84.272,84.243,3.13164519]
[1773036154278,11.59986016,84.28,84.242,11.87056337]
[1773036154486,3.09431672,84.265,84.242,11.87056337]
[1773036155082,3.09431672,84.265,84.237,11.87116917]
[1773036155284,11.86718249,84.266,84.22,11.59986016]
[1773036155285,3.09431672,84.259,84.22,11.59986016]
[1773036155491,3.09431672,84.259,84.221,41.5573313]
[1773036155695,3.09431672,84.259,84.222,3.13164519]
[1773036155895,3.09431672,84.257,84.223,15.00488646]
[1773036156075,3.09431672,84.257,84.223,3.13164519]
[1773036156592,3.09431672,84.249,84.221,11.87338738]
[1773036157069,3.09431672,84.249,84.216,15.00576689]
[1773036158690,3.09431672,84.247,84.211,11.8749332]
[1773036158894,3.09431672,84.239,84.211,11.8749332]
[1773036159075,3.09431672,84.239,84.207,11.87547513]
[1773036159276,3.09431672,84.239,84.208,3.13164519]
[1773036160686,11.87112704,84.238,84.209,11.87521523]